fUSD/lending_fUSD_20251129
["ID","MTS","AMOUNT","RATE_DAILY","PERIOD"]
[395101355,1764427854875,-2887.785338,0.00021119,2]
[395101356,1764427854885,-2887.785338,0.00021119,2]
[395101357,1764427854895,-2887.785338,0.00021119,2]
[395101358,1764427854905,-2887.785338,0.00021119,2]
[395101359,1764427854915,-151.0,0.00021119,2]
[395101360,1764427854925,-151.0,0.00021119,2]
[395101361,1764427854935,-151.0,0.00021119,2]
[395101362,1764427854944,-151.0,0.00021119,2]
[395101363,1764427854953,-151.0,0.00021119,2]
[395101364,1764427854962,-151.0,0.00021119,2]
[395101365,1764427854972,-158.350754,0.00021119,2]
[395101366,1764427854982,-158.350754,0.00021119,2]
[395101367,1764427854992,-158.350754,0.00021119,2]
[395101368,1764427855002,-158.350754,0.00021119,2]
[395101369,1764427855012,-151.0,0.00021119,2]
[395101370,1764427855022,-151.0,0.00021119,2]
[395101371,1764427855032,-458.072187,0.00021119,2]
[395101372,1764427855042,-151.0,0.00021119,2]
[395101373,1764427855053,-458.072187,0.00021119,2]
[395101374,1764427855064,-458.072187,0.00021119,2]
[395101375,1764427855076,-458.072187,0.00021119,2]
[395101376,1764427855087,-814.959456,0.00021119,2]
[395101377,1764427855097,-814.959456,0.00021119,2]
[395101378,1764427855107,-814.959456,0.00021119,2]
[395101379,1764427855117,-814.959456,0.00021119,2]
[395101380,1764427855127,-3941.447001,0.00021119,2]
[395101381,1764427855136,-3941.447001,0.00021119,2]
[395101382,1764427855146,-3941.447001,0.00021119,2]
[395101383,1764427855156,-192.71686,0.00021119,2]
[395101384,1764427855165,-3941.447001,0.00021119,2]
[395101385,1764427855175,-1586.251219,0.00021119,2]
[395101386,1764427855184,-1586.251219,0.00021119,2]
[395101387,1764427855194,-151.0,0.00021119,2]
[395101388,1764427855204,-151.0,0.00021119,2]
[395101389,1764427855213,-1586.251219,0.00021119,2]
[395101390,1764427855223,-151.0,0.00021119,2]
[395101391,1764427855232,-1586.251219,0.00021119,2]
[395101392,1764427855242,-384.512153,0.00021119,2]
[395101393,1764427855251,-384.512153,0.00021119,2]
[395101394,1764427855261,-384.512153,0.00021119,2]
[395101395,1764427855270,-216.202409,0.00021119,2]
[395101396,1764427855282,-384.512153,0.00021119,2]
[395101397,1764427855291,-216.202409,0.00021119,2]
[395101398,1764427855301,-182.826416,0.00021119,2]
[395101399,1764427855311,-216.202409,0.00021119,2]
[395101400,1764427855320,-182.826416,0.00021119,2]
[395101401,1764427855330,-216.202409,0.00021119,2]
[395101402,1764427855340,-182.826416,0.00021119,2]
[395101403,1764427855349,-182.826416,0.00021119,2]
[395101404,1764427855359,-283.631171,0.00021119,2]
[395101405,1764427855368,-150.0,0.00021121,4]
[395101406,1764427855378,-150.0,0.00021149,4]
[395101407,1764427855388,-150.0,0.00021187,4]
[395101408,1764427855399,-150.0,0.00021193,4]
[395101409,1764427855408,-150.0,0.00021193,4]
[395101410,1764427855418,-425.5347,0.00021242,2]
[395101411,1764427855427,-610.0,0.00021256,2]
[395101412,1764427855437,-500.0,0.00021256,2]
[395101413,1764427855446,-500.0,0.00021256,2]
[395101414,1764427855456,-500.0,0.00021256,2]
[395101415,1764427855466,-1497.0,0.00021256,2]
[395101416,1764427855475,-1435.0,0.00021256,2]
[395101417,1764427855485,-150.0,0.00021284,4]
[395101418,1764427855495,-150.0,0.00021284,4]
[395101419,1764427855504,-150.0,0.000213,4]
[395101420,1764427855514,-150.0,0.00021314,4]
[395101421,1764427855524,-150.0,0.00021336,4]
[395101422,1764427855534,-150.0,0.00021336,4]
[395101423,1764427855543,-174.61919141,0.0002137,2]
[395101424,1764427855553,-150.0,0.00021382,4]
[395101425,1764427855562,-610.0,0.00021393,2]
[395101426,1764427855571,-500.0,0.00021393,2]
[395101427,1764427855581,-295.9977799,0.00021393,2]
[395101428,1764427855591,-500.0,0.00021393,2]
[395101429,1764427855600,-1497.0,0.00021393,2]
[395101430,1764427855610,-1435.0,0.00021393,2]
[395101431,1764427855619,-288.31928454,0.0002143,13]
[395101432,1764427855629,-1214.1349594,0.00021452,2]
[395101433,1764427855638,-275.50830551,0.00021479,4]
[395101434,1764427855648,-168.6938093,0.00021479,4]
[395101435,1764427855659,-288.28236591,0.00021479,4]
[395101436,1764427855668,-152.75012698,0.00021479,4]
[395101437,1764427855678,-271.00966251,0.00021479,4]
[395101438,1764427855688,-150.0,0.00021479,4]
[395101439,1764427855698,-151.51179018,0.00021479,4]
[395101440,1764427855707,-292.69708667,0.00021479,4]
[395101441,1764427855718,-1648.0,0.00021479,2]
[395101442,1764427855732,-282.37647689,0.00021479,4]
[395101443,1764427855742,-164.89666483,0.00021479,4]
[395101444,1764427855752,-610.0,0.00021503,2]
[395101445,1764427855763,-1603.0,0.00021503,2]
[395101446,1764427855773,-1321.0,0.00021503,2]
[395101447,1764427855782,-1258.0,0.00021503,2]
[395101448,1764427855793,-640.0,0.00021503,2]
[395101449,1764427855804,-150.0,0.00021503,2]
[395101450,1764427855814,-2718.0,0.00021503,2]
[395101451,1764427855824,-562.0,0.00021503,2]
[395101452,1764427855834,-150.0,0.00021503,2]
[395101453,1764427855843,-610.0,0.0002153,2]
[395101454,1764427855854,-500.0,0.0002153,2]
[395101455,1764427855863,-500.0,0.0002153,2]
[395101456,1764427855873,-1497.0,0.0002153,2]
[395101457,1764427855883,-217.51,0.00021544,2]
[395101458,1764427856215,-3400.79437713,0.00021556,2]
[395101459,1764427856224,-151.0,0.00021617,2]
[395101460,1764427856233,-151.0,0.00021617,2]
[395101461,1764427856243,-17253.21632027,0.00021619,2]
[395101462,1764427856252,-500.0,0.00021656,2]
[395101463,1764427856262,-24029.41471509,0.00021659,2]
[395101464,1764427856271,-610.0,0.00021667,2]
[395101465,1764427856280,-500.0,0.00021667,2]
[395101466,1764427856290,-500.0,0.00021667,2]
[395101467,1764427856299,-1497.0,0.00021667,2]
[395101468,1764427856310,-610.0,0.00021804,2]
[395101469,1764427856320,-500.0,0.00021804,2]
[395101470,1764427856329,-500.0,0.00021804,2]
[395101471,1764427856338,-1497.0,0.00021804,2]
[395101472,1764427856348,-150.0,0.00021918,2]
[395101473,1764427856357,-181.08010149,0.00021918,2]
[395101474,1764427856367,-610.0,0.00021941,2]
[395101475,1764427856377,-500.0,0.00021941,2]
[395101476,1764427856387,-500.0,0.00021941,2]
[395101477,1764427856398,-1497.0,0.00021941,2]
[395101478,1764427856407,-500.0,0.00022,8]
[395101479,1764427856420,-500.0,0.00022,8]
[395101480,1764427856430,-500.0,0.00022,8]
[395101481,1764427856441,-500.0,0.00022,8]
[395101482,1764427856451,-500.0,0.00022,8]
[395101483,1764427856462,-500.0,0.00022,8]
[395101484,1764427856472,-500.0,0.00022,8]
[395101485,1764427856482,-500.0,0.00022,8]
[395101486,1764427856492,-23018.96460304,0.00022,4]
[395101487,1764427856502,-151.0,0.00022,2]
[395101488,1764427856512,-203.69,0.00022,2]
[395101489,1764427856521,-1000.0,0.0002202,2]
[395101490,1764427856531,-2300.0,0.0002206,7]
[395101491,1764427856540,-3000.0,0.0002206,7]
[395101492,1764427856550,-610.0,0.00022078,2]
[395101493,1764427856559,-500.0,0.00022078,2]
[395101494,1764427856569,-500.0,0.00022078,2]
[395101495,1764427856578,-7151.0,0.00022097,2]
[395101496,1764427856588,-288.31928454,0.00022097,15]
[395101497,1764427856598,-610.0,0.00022215,2]
[395101498,1764427856607,-500.0,0.00022215,2]
[395101499,1764427856616,-500.0,0.00022215,2]
[395101500,1764427856626,-411.9192268,0.00022324,2]
[395101501,1764427856636,-610.0,0.00022352,2]
[395101502,1764427856645,-589.0,0.00022352,2]
[395101503,1764427856655,-390.74952482,0.00022352,2]
[395101504,1764427856665,-217.51,0.00022372,2]
[395101505,1764427856675,-500.0,0.00022395,2]
[395101506,1764427856685,-346.92554585,0.00022396,2]
[395101507,1764427856695,-309.29654756,0.00022396,2]
[395101508,1764427856705,-931.76684025,0.00022446,2]
[395101509,1764427856715,-206.34866126,0.00022466,2]
[395101510,1764427856729,-187.78006525,0.00022466,2]
[395101511,1764427856738,-610.0,0.00022489,2]
[395101512,1764427856748,-610.0,0.00022626,2]
[395101513,1764427856757,-677.47847321,0.00022639,2]
[395101514,1764427856767,-151.0,0.0002264,2]
[395101515,1764427856777,-250.924078,0.0002264,2]
[395101516,1764427856787,-156.38118,0.0002264,2]
[395101517,1764427856797,-151.0,0.0002264,2]
[395101518,1764427856806,-610.0,0.00022763,2]
[395101519,1764427856816,-288.31928454,0.00022764,16]
[395101520,1764427856825,-176.07,0.00022804,2]
[395101521,1764427856838,-610.0,0.000229,2]
[395101522,1764427856847,-1461.27751259,0.00023,30]
[395101523,1764427856857,-630.63252825,0.00023,7]
[395101524,1764427856866,-400.0,0.00023,2]
[395101525,1764427856876,-262.505062,0.00023,2]
[395101526,1764427856885,-151.0,0.00023,2]
[395101527,1764427856895,-262.505062,0.00023,2]
[395101528,1764427856905,-151.0,0.00023,2]
[395101529,1764427856915,-151.0,0.00023,2]
[395101530,1764427856924,-151.0,0.00023,2]
[395101531,1764427856935,-285.061314,0.00023,2]
[395101532,1764427856949,-277.365554,0.00023,2]
[395101533,1764427856959,-285.061314,0.00023,2]
[395101534,1764427856968,-277.365554,0.00023,2]
[395101535,1764427856978,-285.061314,0.00023,2]
[395101536,1764427856988,-277.365554,0.00023,2]
[395101537,1764427856997,-285.061314,0.00023,2]
[395101538,1764427857007,-277.365554,0.00023,2]
[395101539,1764427857017,-151.0,0.00023,2]
[395101540,1764427857026,-151.0,0.00023,2]
[395101541,1764427857035,-151.0,0.00023,2]
[395101542,1764427857044,-315.256833,0.00023,2]
[395101543,1764427857055,-151.0,0.00023,2]
[395101544,1764427857069,-151.0,0.00023,2]
[395101545,1764427857080,-151.0,0.00023,2]
[395101546,1764427857088,-315.256833,0.00023,2]
[395101547,1764427857098,-151.0,0.00023,2]
[395101548,1764427857108,-151.0,0.00023,2]
[395101549,1764427857118,-151.0,0.00023,2]
[395101550,1764427857128,-315.256833,0.00023,2]
[395101551,1764427857139,-174.255777,0.00023,2]
[395101552,1764427857150,-315.256833,0.00023,2]
[395101553,1764427857160,-174.255777,0.00023,2]
[395101554,1764427857170,-174.255777,0.00023,2]
[395101555,1764427857180,-174.255777,0.00023,2]
[395101556,1764427857190,-151.0,0.00023,2]
[395101557,1764427857199,-7000.0,0.00023,2]
[395101558,1764427857209,-194.72792766,0.00023014,2]
[395101559,1764427857218,-610.0,0.00023037,2]
[395101560,1764427857233,-500.0,0.00023127,2]
[395101561,1764427857242,-2300.0,0.00023156,7]
[395101562,1764427857251,-3000.0,0.00023156,7]
[395101563,1764427857263,-627.0,0.00023174,2]
[395101564,1764427857273,-17752.49975948,0.00023254,2]
[395101565,1764427857283,-151.0,0.0002326,2]
[395101566,1764427857293,-17253.21632027,0.00023276,2]
[395101567,1764427857303,-340.295419,0.00023276,2]
[395101568,1764427857313,-1921.478575,0.00023276,2]
[395101569,1764427857328,-340.295419,0.00023276,2]
[395101570,1764427857338,-1921.478575,0.00023276,2]
[395101571,1764427857349,-340.295419,0.00023276,2]
[395101572,1764427857359,-1921.478575,0.00023276,2]
[395101573,1764427857370,-340.295419,0.00023276,2]
[395101574,1764427857382,-1921.478575,0.00023276,2]
[395101575,1764427857393,-372.503113,0.00023276,2]
[395101576,1764427857402,-372.503113,0.00023276,2]
[395101577,1764427857413,-151.0,0.00023276,2]
[395101578,1764427857422,-279.53315,0.00023276,2]
[395101579,1764427857432,-372.503113,0.00023276,2]
[395101580,1764427857441,-151.0,0.00023276,2]
[395101581,1764427857451,-151.0,0.00023276,2]
[395101582,1764427857461,-151.0,0.00023276,2]
[395101583,1764427857472,-279.53315,0.00023276,2]
[395101584,1764427857483,-372.503113,0.00023276,2]
[395101585,1764427857493,-151.0,0.00023276,2]
[395101586,1764427857503,-279.53315,0.00023276,2]
[395101587,1764427857512,-1281.534657,0.00023276,2]
[395101588,1764427857522,-444.344971,0.00023276,2]
[395101589,1764427857532,-1022.076448,0.00023276,2]
[395101590,1764427857541,-279.53315,0.00023276,2]
[395101591,1764427857551,-444.344971,0.00023276,2]
[395101592,1764427857560,-1022.076448,0.00023276,2]
[395101593,1764427857569,-1281.534657,0.00023276,2]
[395101594,1764427857580,-1022.076448,0.00023276,2]
[395101595,1764427857590,-1281.534657,0.00023276,2]
[395101596,1764427857600,-444.344971,0.00023276,2]
[395101597,1764427857611,-151.0,0.00023276,2]
[395101598,1764427857620,-1022.076448,0.00023276,2]
[395101599,1764427857630,-1281.534657,0.00023276,2]
[395101600,1764427857639,-444.344971,0.00023276,2]
[395101601,1764427857650,-151.0,0.00023276,2]
[395101602,1764427857659,-151.0,0.00023276,2]
[395101603,1764427857669,-151.0,0.00023276,2]
[395101604,1764427857680,-151.0,0.00023276,2]
[395101605,1764427857690,-151.0,0.00023276,2]
[395101606,1764427857700,-654.42245,0.00023276,2]
[395101607,1764427857710,-654.42245,0.00023276,2]
[395101608,1764427857721,-654.42245,0.00023276,2]
[395101609,1764427857732,-654.42245,0.00023276,2]
[395101610,1764427857741,-269.2477,0.00023276,2]
[395101611,1764427857757,-269.2477,0.00023276,2]
[395101612,1764427857767,-269.2477,0.00023276,2]
[395101613,1764427857776,-269.2477,0.00023276,2]
[395101614,1764427857787,-151.0,0.00023276,2]
[395101615,1764427857797,-554.586815,0.00023276,2]
[395101616,1764427857807,-554.586815,0.00023276,2]
[395101617,1764427857817,-554.586815,0.00023276,2]
[395101618,1764427857827,-554.586815,0.00023276,2]
[395101619,1764427857837,-592.369674,0.00023276,2]
[395101620,1764427857846,-592.369674,0.00023276,2]
[395101621,1764427857856,-592.369674,0.00023276,2]
[395101622,1764427857867,-592.369674,0.00023276,2]
[395101623,1764427857876,-24029.41471509,0.00023334,2]
[395101624,1764427857887,-300.0,0.00023344,2]
[395101625,1764427857898,-300.0,0.00023378,2]
[395101626,1764427857908,-288.31928454,0.00023431,18]
[395101627,1764427857918,-707.028212,0.00023559,2]
[395101628,1764427857928,-201.93286099,0.00023562,2]
[395101629,1764427857939,-241.89032763,0.00023646,2]
[395101630,1764427857949,-479.66,0.00023658,2]
[395101631,1764427857958,-304.0,0.000237,2]
[395101632,1764427857968,-359.76179104,0.00023765,2]
[395101633,1764427857979,-320.74051982,0.00023765,2]
[395101634,1764427857988,-2000.0,0.00023799,2]
[395101635,1764427857998,-500.0,0.000238,7]
[395101636,1764427858007,-500.0,0.000238,7]
[395101637,1764427858017,-500.0,0.000238,7]
[395101638,1764427858026,-359.06,0.000238,7]
[395101639,1764427858036,-500.0,0.00023844,2]
[395101640,1764427858045,-300.0,0.00023964,2]
[395101641,1764427858056,-427.45964135,0.00024,7]
[395101642,1764427858066,-1000.0,0.00024022,2]
[395101643,1764427858075,-300.0,0.00024028,2]
[395101644,1764427858085,-959.32,0.00024039,2]
[395101645,1764427858095,-500.0,0.00024079,2]
[395101646,1764427858105,-406.74316143,0.00024079,2]
[395101647,1764427858115,-500.0,0.00024079,2]
[395101648,1764427858124,-200.0,0.00024079,2]
[395101649,1764427858134,-500.0,0.00024079,2]
[395101650,1764427858143,-288.31928454,0.00024098,19]
[395101651,1764427858153,-513.78023628,0.00024101,2]
[395101652,1764427858162,-209.40437684,0.0002411,2]
[395101653,1764427858171,-300.0,0.00024111,2]
[395101654,1764427858181,-300.0,0.00024184,2]
[395101655,1764427858191,-233.98,0.00024225,30]
[395101656,1764427858201,-300.0,0.00024244,2]
[395101657,1764427858210,-300.0,0.00024249,2]
[395101658,1764427858220,-2300.0,0.00024252,7]
[395101659,1764427858230,-3000.0,0.00024252,7]
[395101660,1764427858239,-151.0,0.00024297,7]
[395101661,1764427858249,-27905.3,0.000243,7]
[395101662,1764427858258,-159.346991,0.000243,2]
[395101663,1764427858267,-151.0,0.000243,2]
[395101664,1764427858277,-151.0,0.000243,2]
[395101665,1764427858286,-151.0,0.000243,2]
[395101666,1764427858296,-275.9649,0.000243,2]
[395101667,1764427858305,-151.0,0.000243,2]
[395101668,1764427858315,-151.0,0.000243,2]
[395101669,1764427858324,-151.0,0.000243,2]
[395101670,1764427858334,-151.0,0.000243,2]
[395101671,1764427858343,-1190.262288,0.000243,2]
[395101672,1764427858352,-1190.262288,0.000243,2]
[395101673,1764427858362,-1190.262288,0.000243,2]
[395101674,1764427858371,-1190.262288,0.000243,2]
[395101675,1764427858380,-151.0,0.000243,2]
[395101676,1764427858389,-151.0,0.000243,2]
[395101677,1764427858398,-151.0,0.000243,2]
[395101678,1764427858408,-303.551281,0.000243,2]
[395101679,1764427858417,-786.700385,0.000243,2]
[395101680,1764427858427,-303.551281,0.000243,2]
[395101681,1764427858436,-786.700385,0.000243,2]
[395101682,1764427858445,-303.551281,0.000243,2]
[395101683,1764427858455,-345.568016,0.000243,2]
[395101684,1764427858464,-786.700385,0.000243,2]
[395101685,1764427858474,-303.551281,0.000243,2]
[395101686,1764427858483,-786.700385,0.000243,2]
[395101687,1764427858492,-151.0,0.000243,2]
[395101688,1764427858502,-345.568016,0.000243,2]
[395101689,1764427858511,-345.568016,0.000243,2]
[395101690,1764427858521,-345.568016,0.000243,2]
[395101691,1764427858530,-151.0,0.000243,2]
[395101692,1764427858539,-151.0,0.000243,2]
[395101693,1764427858549,-2887.785338,0.000243,2]
[395101694,1764427858565,-2887.785338,0.000243,2]
[395101695,1764427858574,-2887.785338,0.000243,2]
[395101696,1764427858583,-2887.785338,0.000243,2]
[395101697,1764427858593,-151.0,0.000243,2]
[395101698,1764427858602,-151.0,0.000243,2]
[395101699,1764427858611,-151.0,0.000243,2]
[395101700,1764427858620,-151.0,0.000243,2]
[395101701,1764427858629,-151.0,0.000243,2]
[395101702,1764427858638,-151.0,0.000243,2]
[395101703,1764427858648,-158.350754,0.000243,2]
[395101704,1764427858657,-158.350754,0.000243,2]
[395101705,1764427858668,-158.350754,0.000243,2]
[395101706,1764427858677,-158.350754,0.000243,2]
[395101707,1764427858687,-151.0,0.000243,2]
[395101708,1764427858696,-151.0,0.000243,2]
[395101709,1764427858705,-458.072187,0.000243,2]
[395101710,1764427858715,-151.0,0.000243,2]
[395101711,1764427858732,-458.072187,0.000243,2]
[395101712,1764427858742,-458.072187,0.000243,2]
[395101713,1764427858751,-458.072187,0.000243,2]
[395101714,1764427858760,-814.959456,0.000243,2]
[395101715,1764427858770,-814.959456,0.000243,2]
[395101716,1764427858779,-814.959456,0.000243,2]
[395101717,1764427858789,-814.959456,0.000243,2]
[395101718,1764427858798,-3941.447001,0.000243,2]
[395101719,1764427858807,-3941.447001,0.000243,2]
[395101720,1764427858816,-3941.447001,0.000243,2]
[395101721,1764427858826,-3941.447001,0.000243,2]
[395101722,1764427858836,-1586.251219,0.000243,2]
[395101723,1764427858854,-1586.251219,0.000243,2]
[395101724,1764427858868,-151.0,0.000243,2]
[395101725,1764427858883,-151.0,0.000243,2]
[395101726,1764427858899,-1586.251219,0.000243,2]
[395101727,1764427858914,-151.0,0.000243,2]
[395101728,1764427858931,-1586.251219,0.000243,2]
[395101729,1764427858944,-384.512153,0.000243,2]
[395101730,1764427858958,-384.512153,0.000243,2]
[395101731,1764427858973,-384.512153,0.000243,2]
[395101732,1764427858988,-216.202409,0.000243,2]
[395101733,1764427859004,-384.512153,0.000243,2]
[395101734,1764427859019,-216.202409,0.000243,2]
[395101735,1764427859035,-182.826416,0.000243,2]
[395101736,1764427859052,-182.826416,0.000243,2]
[395101737,1764427859067,-216.202409,0.000243,2]
[395101738,1764427859086,-216.202409,0.000243,2]
[395101739,1764427859101,-182.826416,0.000243,2]
[395101740,1764427859115,-182.826416,0.000243,2]
[395101741,1764427859127,-4542.90961816,0.00024303,2]
[395101742,1764427859143,-2000.0,0.000244,2]
[395101743,1764427859157,-1395.85381451,0.00024401,2]
[395101744,1764427859169,-300.0,0.00024415,2]
[395101745,1764427859189,-300.0,0.00024436,2]
[395101746,1764427859202,-610.0,0.00024503,2]
[395101747,1764427859213,-1603.0,0.00024503,2]
[395101748,1764427859229,-1321.0,0.00024503,2]
[395101749,1764427859242,-1258.0,0.00024503,2]
[395101750,1764427859256,-640.0,0.00024503,2]
[395101751,1764427859274,-150.0,0.00024503,2]
[395101752,1764427859290,-1651.749,0.00024503,2]
[395101753,1764427859305,-562.0,0.00024503,2]
[395101754,1764427859321,-203.69,0.00024505,2]
[395101755,1764427859337,-500.0,0.00024521,2]
[395101756,1764427859351,-1500.45769828,0.00024544,2]
[395101757,1764427859364,-324.5,0.00024545,15]
[395101758,1764427859378,-1000.0,0.0002455,2]
[395101759,1764427859392,-500.0,0.000246,5]
[395101760,1764427859406,-289.29220146,0.00024633,7]
[395101761,1764427859419,-1000.0,0.00024647,30]
[395101762,1764427859433,-1000.0,0.00024647,30]
[395101763,1764427859447,-1000.0,0.00024647,30]
[395101764,1764427859461,-1000.0,0.00024647,30]
[395101765,1764427859476,-1000.0,0.00024647,30]
[395101766,1764427859490,-1000.0,0.00024647,30]
[395101767,1764427859504,-1000.0,0.00024647,30]
[395101768,1764427859518,-1000.0,0.00024647,30]
[395101769,1764427859531,-314.472,0.00024647,30]
[395101770,1764427859543,-500.0,0.00024657,2]
[395101771,1764427859558,-1215.62,0.00024658,2]
[395101772,1764427859572,-151.0,0.00024658,2]
[395101773,1764427859596,-151.0,0.00024658,2]
[395101774,1764427859609,-151.0,0.00024658,2]
[395101775,1764427859622,-151.0,0.00024658,2]
[395101776,1764427859635,-151.0,0.00024658,2]
[395101777,1764427859648,-151.0,0.00024658,2]
[395101778,1764427859661,-151.0,0.00024658,2]
[395101779,1764427859674,-151.0,0.00024658,2]
[395101780,1764427859687,-151.0,0.00024658,2]
[395101781,1764427859701,-227.518854,0.00024658,2]
[395101782,1764427859714,-151.0,0.00024658,7]
[395101783,1764427859730,-500.0,0.00024658,2]
[395101784,1764427859744,-500.0,0.00024658,2]
[395101785,1764427859757,-500.0,0.00024658,2]
[395101786,1764427859770,-500.0,0.00024658,2]
[395101787,1764427859783,-500.0,0.00024658,2]
[395101788,1764427859796,-500.0,0.00024658,2]
[395101789,1764427859814,-500.0,0.00024658,2]
[395101790,1764427859827,-500.0,0.00024658,2]
[395101791,1764427859840,-500.0,0.00024658,2]
[395101792,1764427859855,-500.0,0.00024658,2]
[395101793,1764427859868,-500.0,0.00024658,2]
[395101794,1764427859881,-500.0,0.00024658,2]
[395101795,1764427859895,-500.0,0.00024658,2]
[395101796,1764427859908,-353.57329557,0.00024658,2]
[395101797,1764427859921,-500.0,0.00024658,2]
[395101798,1764427859934,-500.0,0.00024658,2]
[395101799,1764427859947,-500.0,0.00024658,2]
[395101800,1764427859959,-500.0,0.00024658,2]
[395101801,1764427859973,-500.0,0.00024658,2]
[395101802,1764427859986,-500.0,0.00024658,2]
[395101803,1764427860000,-500.0,0.00024658,2]
[395101804,1764427860013,-500.0,0.00024658,2]
[395101805,1764427860025,-217.15233878,0.00024658,2]
[395101806,1764427860038,-150.0,0.00024673,2]
[395101807,1764427860051,-300.0,0.00024673,2]
[395101808,1764427860065,-185.47,0.000247,11]
[395101809,1764427860078,-150.0,0.00024752,2]
[395101810,1764427860092,-288.31928454,0.00024765,20]
[395101811,1764427860104,-544.34192817,0.00024799,2]
[395101812,1764427860118,-178.11464868,0.00024799,2]
[395101813,1764427860132,-159.29,0.00024799,2]
[395101814,1764427860145,-186866.16266041,0.000248,7]
[395101815,1764427860158,-160.0,0.000248,7]
[395101816,1764427860172,-217.0,0.000248,2]
[395101817,1764427860185,-427.45964135,0.000248,7]
[395101818,1764427860198,-427.45964135,0.000248,3]
[395101819,1764427860212,-151.0,0.000248,2]
[395101820,1764427860224,-151.0,0.000248,2]
[395101821,1764427860238,-151.0,0.000248,2]
[395101822,1764427860253,-151.0,0.000248,2]
[395101823,1764427860265,-151.0,0.000248,2]
[395101824,1764427860279,-151.0,0.000248,2]
[395101825,1764427860292,-151.0,0.000248,7]
[395101826,1764427860306,-176.208337,0.000248,7]
[395101827,1764427860319,-182.031897,0.000248,7]
[395101828,1764427860332,-151.0,0.000248,7]
[395101829,1764427860345,-159.865288,0.000248,7]
[395101830,1764427860359,-224.50492384,0.000248,7]
[395101831,1764427860371,-151.0,0.000248,7]
[395101832,1764427860386,-262.505062,0.000248,7]
[395101833,1764427860399,-262.505062,0.000248,7]
[395101834,1764427860412,-151.0,0.000248,7]
[395101835,1764427860425,-262.505056,0.000248,7]
[395101836,1764427860437,-151.0,0.000248,7]
[395101837,1764427860449,-151.0,0.000248,7]
[395101838,1764427860461,-151.0,0.000248,7]
[395101839,1764427860474,-285.061314,0.000248,7]
[395101840,1764427860486,-277.365554,0.000248,7]
[395101841,1764427860499,-285.061314,0.000248,7]
[395101842,1764427860513,-277.365554,0.000248,7]
[395101843,1764427860526,-285.061314,0.000248,7]
[395101844,1764427860539,-277.365554,0.000248,7]
[395101845,1764427860552,-285.061313,0.000248,7]
[395101846,1764427860564,-277.365545,0.000248,7]
[395101847,1764427860580,-151.0,0.000248,7]
[395101848,1764427860592,-151.0,0.000248,7]
[395101849,1764427860604,-151.0,0.000248,7]
[395101850,1764427860617,-315.256833,0.000248,7]
[395101851,1764427860629,-151.0,0.000248,7]
[395101852,1764427860641,-151.0,0.000248,7]
[395101853,1764427860653,-151.0,0.000248,7]
[395101854,1764427860666,-315.256833,0.000248,7]